bitfinex/quotes_BTCUSD_20250703
["timestamp","ask_amount","ask_price","bid_price","bid_amount"]
[1751554501112,5.64808552,109800.0,109790.0,0.01069646]
[1751554501325,6.33531213,109800.0,109790.0,0.01069646]
[1751554502412,5.64199273,109800.0,109790.0,0.04871223]
[1751554502624,6.34441934,109800.0,109790.0,0.04279455]
[1751554502867,6.34441934,109800.0,109790.0,0.03779455]
[1751554503107,6.34441934,109800.0,109790.0,0.03209795]
[1751554503547,6.34441934,109800.0,109790.0,0.01699795]
[1751554503773,6.84134595,109800.0,109790.0,0.01699795]
[1751554504000,0.56317408,109790.0,109780.0,0.002]
[1751554504230,6.30959762,109790.0,109780.0,0.01900241]
[1751554504898,6.30959762,109790.0,109780.0,0.002]
[1751554505135,1.30959762,109790.0,109780.0,0.002]
[1751554505384,6.29429762,109790.0,109780.0,0.003]
[1751554505987,6.31585377,109790.0,109780.0,0.003]
[1751554506201,6.29429762,109790.0,109780.0,0.003]
[1751554507286,6.31587647,109790.0,109780.0,0.003]
[1751554507737,5.83524986,109790.0,109780.0,0.0032]
[1751554507988,6.30027647,109790.0,109780.0,0.0032]
[1751554508404,6.30027647,109790.0,109780.0,0.2269915]
[1751554508405,0.03168664,109790.0,109780.0,0.2269915]
[1751554508620,0.21049025,109790.0,109780.0,0.2269915]
[1751554508833,0.55049025,109790.0,109780.0,0.23610029]
[1751554509056,0.55049025,109790.0,109780.0,0.245209]
[1751554509275,0.55049025,109790.0,109780.0,0.23610029]
[1751554509489,0.35010763,109790.0,109780.0,0.23610029]
[1751554509698,0.001,109790.0,109780.0,0.24520883]
[1751554510349,0.01010771,109790.0,109780.0,0.24520883]
[1751554510565,0.001,109790.0,109780.0,0.24520883]
[1751554510759,0.01010763,109790.0,109780.0,0.24520883]
[1751554510998,0.02832322,109790.0,109780.0,0.24520883]
[1751554511204,1.01498371,109800.0,109780.0,0.24520883]
[1751554511205,0.5590631,109800.0,109790.0,0.23198229]
[1751554511416,0.36780628,109800.0,109790.0,0.24109025]
[1751554511627,0.01869873,109800.0,109790.0,0.24919796]
[1751554511867,0.00044703,109800.0,109790.0,0.24919796]
[1751554512296,0.34955383,109800.0,109790.0,0.24919796]
[1751554512713,0.34955383,109800.0,109790.0,0.25019796]
[1751554512933,0.3596608,109800.0,109790.0,0.25019796]
[1751554513181,0.34965382,109800.0,109790.0,0.24919796]
[1751554513387,0.3587607,109800.0,109790.0,0.24919796]
[1751554514024,0.37697488,109800.0,109790.0,0.24919796]
[1751554514256,0.3587607,109800.0,109790.0,0.24919796]
[1751554514480,0.36886775,109800.0,109790.0,0.25219796]
[1751554514684,0.35065382,109800.0,109790.0,0.25219796]
[1751554514864,0.35065382,109800.0,109790.0,0.26072686]
[1751554515066,0.00154702,109800.0,109790.0,0.26072686]
[1751554515289,0.00154702,109800.0,109790.0,0.26172686]
[1751554515714,0.0106539,109800.0,109790.0,0.26172686]
[1751554515914,0.00154702,109800.0,109790.0,0.26172686]
[1751554516124,0.0106539,109800.0,109790.0,0.26172686]
[1751554517572,0.00154702,109800.0,109790.0,0.35316379]
[1751554519059,0.00154702,109800.0,109790.0,0.54392379]
[1751554519677,0.01065374,109800.0,109790.0,0.33494812]
[1751554519916,0.0379748,109800.0,109790.0,0.24451118]
[1751554520133,0.22012458,109800.0,109790.0,0.44433914]
[1751554520343,0.2110177,109800.0,109790.0,0.44433914]
[1751554520578,0.20191073,109800.0,109790.0,0.24451118]
[1751554521319,0.20191073,109800.0,109790.0,0.0441289]
[1751554521520,0.19280368,109800.0,109790.0,0.23540314]
[1751554521722,0.01976087,109800.0,109790.0,0.26272718]
[1751554521955,0.2201249,109800.0,109790.0,0.25361939]
[1751554522604,0.22012482,109800.0,109790.0,0.26272718]
[1751554522821,0.22012482,109800.0,109790.0,0.25361939]
[1751554523043,0.03797546,109800.0,109790.0,0.25361939]
[1751554523261,0.01976095,109800.0,109790.0,0.36327199]
[1751554523468,0.0106539,109800.0,109790.0,0.36327199]
[1751554523670,0.01976095,109800.0,109790.0,0.36327199]
[1751554524091,0.02886825,109800.0,109790.0,0.36327199]
[1751554524296,0.02886816,109800.0,109790.0,0.36327199]
[1751554524497,0.01976095,109800.0,109790.0,0.36327199]
[1751554524703,0.0106539,109800.0,109790.0,0.36347199]
[1751554524912,0.01065382,109800.0,109790.0,0.36347199]
[1751554525328,0.01976087,109800.0,109790.0,0.36347199]
[1751554525745,0.028868,109800.0,109790.0,0.36347199]
[1751554526163,0.01976087,109800.0,109790.0,0.36347199]
[1751554527184,0.02886808,109800.0,109790.0,0.36347199]
[1751554527395,0.00154702,109800.0,109790.0,0.36347199]
[1751554527614,0.00144703,109800.0,109790.0,0.363372]
[1751554528417,0.00144703,109800.0,109790.0,0.82839861]
[1751554528669,0.00144703,109800.0,109790.0,0.363372]
[1751554529500,0.00144703,109800.0,109790.0,0.37791285]
[1751554531342,0.00144703,109800.0,109790.0,0.84293946]
[1751554531782,0.00144703,109800.0,109790.0,0.83441056]
[1751554532651,0.00044703,109800.0,109790.0,0.83141056]
[1751554532858,0.00044703,109800.0,109790.0,0.83641056]
[1751554533071,0.00144703,109800.0,109790.0,0.37138395]
[1751554533280,0.00144703,109800.0,109790.0,0.83641056]
[1751554533703,0.00144703,109800.0,109790.0,0.88417056]
[1751554534107,0.00144703,109800.0,109790.0,0.88317056]
[1751554534516,0.00144703,109800.0,109790.0,0.60858395]
[1751554534728,0.00144703,109800.0,109790.0,1.36861056]
[1751554535140,0.00144703,109800.0,109790.0,1.36851056]
[1751554535997,0.00144703,109800.0,109790.0,1.33623056]
[1751554537111,0.00144703,109800.0,109790.0,1.33823056]
[1751554537969,0.00144703,109800.0,109790.0,1.24517209]
[1751554539007,0.00144703,109800.0,109790.0,1.22813209]
[1751554543158,0.00144703,109800.0,109790.0,0.66600395]
[1751554543381,0.00144703,109800.0,109790.0,0.6204631]
[1751554543643,0.03516088,109800.0,109790.0,0.8103831]
[1751554543861,0.60749306,109800.0,109790.0,0.61135539]
[1751554544074,0.62409306,109800.0,109790.0,0.8103831]
[1751554544281,0.63320052,109800.0,109790.0,0.8103831]
[1751554544498,0.45105116,109800.0,109790.0,0.8103831]
[1751554544712,0.07908302,109800.0,109790.0,0.8103831]
[1751554544917,0.63320052,109800.0,109790.0,0.8103831]
[1751554545129,0.4419437,109800.0,109790.0,0.8103831]
[1751554545343,0.0517608,109800.0,109790.0,0.84961094]
[1751554545552,0.00144703,109800.0,109790.0,1.21455124]
[1751554546621,0.00144703,109800.0,109790.0,0.91955124]
[1751554546786,0.00144703,109800.0,109790.0,0.5475831]
[1751554546999,0.00144703,109800.0,109790.0,0.91955124]
[1751554547218,0.00144703,109800.0,109790.0,0.90365124]
[1751554547770,0.00144703,109800.0,109790.0,0.5316831]
[1751554547988,0.01055375,109800.0,109790.0,0.5316831]
[1751554548198,0.00144703,109800.0,109790.0,0.5316831]
[1751554549015,1e-08,109800.0,109790.0,1.46524367]
[1751554549420,1e-08,109800.0,109790.0,1.48134367]
[1751554549991,1e-08,109800.0,109790.0,1.47934367]
[1751554550192,0.38311095,109840.0,109830.0,0.20941353]
[1751554550193,0.40831493,109840.0,109830.0,0.20941353]
[1751554550406,0.40831493,109840.0,109830.0,0.39022922]
[1751554550407,0.59087124,109840.0,109830.0,0.39022922]
[1751554550615,0.59087124,109840.0,109830.0,0.40843842]
[1751554550820,0.39968416,109840.0,109830.0,0.41754282]
[1751554551260,0.39057968,109840.0,109830.0,0.41754282]
[1751554551464,0.39968349,109840.0,109830.0,0.41754282]
[1751554551679,0.40878747,109840.0,109830.0,0.41754282]
[1751554551922,0.40978813,109840.0,109830.0,0.3993337]
[1751554552784,0.59187115,109840.0,109830.0,0.39933386]
[1751554553011,0.59187115,109840.0,109830.0,0.40843842]
[1751554553224,0.40068407,109840.0,109830.0,0.40843826]
[1751554554123,0.39157968,109840.0,109830.0,0.40843826]
[1751554554331,0.40068349,109840.0,109830.0,0.40843826]
[1751554554537,0.40978739,109840.0,109830.0,0.40843826]
[1751554554762,0.40068349,109840.0,109830.0,0.40843826]
[1751554555184,0.36637603,109840.0,109830.0,0.40843826]
[1751554555386,0.0105762,109840.0,109830.0,0.49987519]
[1751554555588,0.00147263,109840.0,109830.0,0.49987519]
[1751554555882,0.01057611,109840.0,109830.0,0.49987519]
[1751554556094,0.00147263,109840.0,109830.0,0.49987519]
[1751554556341,0.01057611,109840.0,109830.0,0.49987519]
[1751554557218,0.03577976,109840.0,109830.0,0.49987519]
[1751554557655,0.03577968,109840.0,109830.0,0.49987519]
[1751554558586,0.02667611,109840.0,109830.0,0.49987519]
[1751554559096,0.00147263,109840.0,109830.0,0.49987519]
[1751554559300,0.00147263,109840.0,109830.0,0.51497519]
[1751554559512,0.00147263,109840.0,109830.0,0.53137519]
[1751554560607,0.00147263,109840.0,109830.0,0.51497519]
[1751554561289,0.00147263,109840.0,109830.0,0.49987519]
[1751554561944,0.00147263,109840.0,109830.0,0.51483519]
[1751554562151,0.00147263,109840.0,109830.0,0.32495519]
[1751554562369,0.00147263,109840.0,109830.0,0.51483519]
[1751554563298,0.00147263,109840.0,109830.0,0.53093519]
[1751554563521,0.00147263,109840.0,109830.0,1.01053576]
[1751554563787,0.00147263,109840.0,109830.0,0.54547604]
[1751554564220,0.00047263,109840.0,109830.0,0.54547604]
[1751554564456,0.00047263,109840.0,109830.0,0.54647604]
[1751554564691,0.00047263,109840.0,109830.0,0.54847604]
[1751554565785,0.00047263,109840.0,109830.0,1.01353576]
[1751554566863,1e-08,109840.0,109830.0,1.06353576]
[1751554567493,1e-08,109840.0,109830.0,1.40353576]
[1751554567711,1e-08,109840.0,109830.0,1.40253576]
[1751554568125,1e-08,109840.0,109830.0,1.2401398]
[1751554568336,0.00100001,109840.0,109830.0,1.4844198]
[1751554569414,0.00100001,109840.0,109830.0,1.4824198]
[1751554569889,0.00100001,109840.0,109830.0,0.81244608]
[1751554570115,0.00100001,109840.0,109830.0,1.3713331]
[1751554570328,0.00100001,109840.0,109830.0,1.29468608]
[1751554570547,0.00100001,109840.0,109830.0,1.6663331]
[1751554570984,0.00100001,109840.0,109830.0,2.03798012]
[1751554571906,0.00100001,109840.0,109830.0,1.75928642]
[1751554574794,0.00140001,109840.0,109830.0,1.75928642]
[1751554575451,0.00140001,109840.0,109830.0,1.29468608]
[1751554575667,0.00140001,109840.0,109830.0,1.75928642]
[1751554575882,1e-08,109840.0,109830.0,1.80928642]
[1751554576090,1e-08,109850.0,109840.0,0.59939446]
[1751554576326,1e-08,109850.0,109840.0,1.85597292]
[1751554576544,1e-08,109850.0,109840.0,1.39137258]
[1751554577368,1e-08,109850.0,109840.0,1.39937258]
[1751554577576,1e-08,109850.0,109840.0,1.44937258]
[1751554577989,1e-08,109850.0,109840.0,0.98477224]
[1751554579474,1e-08,109850.0,109840.0,0.79497224]
[1751554579687,1e-08,109850.0,109840.0,1.03217224]
[1751554581387,1e-08,109850.0,109840.0,1.49677258]
[1751554582087,1e-08,109850.0,109840.0,1.79177258]
[1751554583128,1e-08,109850.0,109840.0,1.32717224]
[1751554585258,1e-08,109850.0,109840.0,1.08997224]
[1751554585477,1e-08,109850.0,109840.0,1.32709224]
[1751554586535,1e-08,109850.0,109840.0,1.35279224]
[1751554587164,1e-08,109850.0,109840.0,1.11567224]
[1751554587386,1e-08,109850.0,109840.0,1.35279224]
[1751554590051,1e-08,109850.0,109840.0,1.06567224]
[1751554590259,0.01630001,109850.0,109840.0,0.96953139]
[1751554590482,0.01630001,109850.0,109840.0,1.20661139]
[1751554590832,0.01630001,109850.0,109840.0,1.22115224]
[1751554591862,0.01670001,109850.0,109840.0,1.22115224]
[1751554593805,0.01670001,109850.0,109840.0,1.59284758]
[1751554593806,0.03330001,109850.0,109840.0,1.59284758]
[1751554594010,0.03330001,109850.0,109840.0,1.35576758]
[1751554594194,0.03330001,109850.0,109840.0,1.59284758]
[1751554595553,0.01670001,109850.0,109840.0,1.59284758]
[1751554596176,0.01670001,109850.0,109840.0,1.22115224]
[1751554596378,0.01670001,109850.0,109840.0,1.59284758]
[1751554597060,0.00040001,109850.0,109840.0,1.59284758]
[1751554598389,0.01660001,109850.0,109840.0,1.59284758]
[1751554598778,0.01660001,109850.0,109840.0,1.33006758]
[1751554598993,0.01660001,109850.0,109840.0,1.56710758]
[1751554599826,0.01660001,109850.0,109840.0,1.27210758]
[1751554600191,0.01660001,109850.0,109840.0,1.26406758]
[1751554600610,0.00040001,109850.0,109840.0,1.26406758]
[1751554600810,0.01550001,109850.0,109840.0,1.26406758]
[1751554601264,0.01550001,109850.0,109840.0,0.89237224]
[1751554601470,0.01550001,109850.0,109840.0,1.26406758]
[1751554601611,0.01550001,109850.0,109840.0,1.27996758]
[1751554602426,0.01550001,109850.0,109840.0,1.04292758]
[1751554602627,0.03050001,109850.0,109840.0,0.69506758]
[1751554602953,0.03050001,109850.0,109840.0,0.93210758]
[1751554604129,0.03050001,109850.0,109840.0,0.69506758]
[1751554604360,0.03050001,109850.0,109840.0,0.93210758]
[1751554606408,0.40219535,109850.0,109840.0,0.09943693]
[1751554606601,0.40219535,109850.0,109840.0,0.008]
[1751554606602,0.60246819,109850.0,109840.0,0.008]
[1751554606828,0.61157084,109850.0,109840.0,0.41617845]
[1751554607024,0.41129792,109850.0,109840.0,0.41617845]
[1751554607207,0.03960258,109850.0,109840.0,0.41217845]
[1751554607604,0.05780805,109850.0,109840.0,0.41517845]
[1751554607825,0.04870523,109850.0,109840.0,0.41517845]
[1751554608027,0.03960258,109850.0,109840.0,0.50361538]
[1751554608225,0.03960258,109850.0,109840.0,0.49961538]
[1751554608475,0.04970532,109850.0,109840.0,0.49961538]
[1751554608710,0.04060258,109850.0,109840.0,0.49961538]
[1751554608940,0.03150001,109850.0,109840.0,0.49961538]
[1751554609156,0.01650001,109850.0,109840.0,0.49961538]
[1751554610258,0.03170001,109850.0,109840.0,0.49961538]
[1751554614646,0.03070001,109850.0,109840.0,0.49961538]
[1751554614863,0.03070001,109850.0,109840.0,0.50061538]
[1751554615091,0.01550001,109850.0,109840.0,0.50061538]
[1751554615286,0.01550001,109850.0,109840.0,0.50161538]
[1751554618305,0.00040001,109850.0,109840.0,0.50161538]
[1751554620315,0.01610001,109850.0,109840.0,0.50161538]
[1751554622174,0.00040001,109850.0,109840.0,1.13273336]
[1751554622808,0.00040001,109850.0,109840.0,1.16009836]
[1751554623222,1e-08,109850.0,109840.0,1.84509836]
[1751554623424,1e-08,109850.0,109840.0,1.89409836]
[1751554623865,1e-08,109850.0,109840.0,1.821381]
[1751554624530,1e-08,109850.0,109840.0,1.820381]
[1751554624791,1e-08,109850.0,109840.0,1.820301]
[1751554625018,1e-08,109850.0,109840.0,1.35766123]
[1751554625202,1e-08,109850.0,109840.0,1.11874123]
[1751554625411,1e-08,109850.0,109840.0,1.35586123]
[1751554625823,1e-08,109850.0,109840.0,1.36186123]
[1751554626445,1e-08,109850.0,109840.0,1.826501]
[1751554627699,1e-08,109850.0,109840.0,1.828501]
[1751554628818,1e-08,109850.0,109840.0,1.826501]
[1751554629316,1e-08,109850.0,109840.0,1.831501]
[1751554632036,1e-08,109850.0,109840.0,1.73841139]
[1751554634685,1e-08,109850.0,109840.0,1.73697244]
[1751554636090,1e-08,109850.0,109840.0,1.50005244]
[1751554636307,1e-08,109850.0,109840.0,1.73681244]
[1751554636529,1e-08,109850.0,109840.0,1.68681244]
[1751554636756,1e-08,109850.0,109840.0,1.50005244]
[1751554636984,1e-08,109850.0,109840.0,1.73681244]
[1751554637474,1e-08,109850.0,109840.0,1.50005244]
[1751554637689,0.01570001,109850.0,109840.0,1.23336228]
[1751554637900,0.01570001,109850.0,109840.0,1.62754744]
[1751554638126,0.01570001,109850.0,109840.0,1.65491344]
[1751554638343,0.01570001,109850.0,109840.0,1.62754744]
[1751554638545,0.01570001,109850.0,109840.0,1.64891344]
[1751554638942,0.01570001,109850.0,109840.0,1.64791344]
[1751554639359,0.01570001,109850.0,109840.0,1.65091344]
[1751554639715,0.01570001,109850.0,109840.0,1.60091344]
[1751554640151,0.01570001,109850.0,109840.0,1.33678744]
[1751554640358,0.03180001,109850.0,109840.0,0.61069643]
[1751554640565,0.40335017,109850.0,109840.0,0.61069643]
[1751554640768,0.40335017,109850.0,109840.0,0.80013643]
[1751554641038,0.40335017,109850.0,109840.0,0.61069643]
[1751554641349,0.41245282,109850.0,109840.0,0.60869643]
[1751554641512,0.41245282,109850.0,109840.0,0.79813643]
[1751554641513,0.03180001,109850.0,109840.0,0.79813643]
[1751554641722,0.04090266,109850.0,109840.0,0.79313643]
[1751554641926,0.04090266,109850.0,109840.0,0.79413643]
[1751554642133,0.61272566,109850.0,109840.0,0.0032]
[1751554642335,0.60362284,109850.0,109840.0,0.18528302]
[1751554642490,0.60362284,109850.0,109840.0,0.194387]
[1751554642713,0.60362284,109850.0,109840.0,0.192387]
[1751554642924,0.60362284,109850.0,109840.0,0.18428302]
[1751554643139,0.59451985,109850.0,109840.0,0.19338717]
[1751554643346,0.58541662,109850.0,109840.0,0.19338717]
[1751554643547,0.58541662,109850.0,109840.0,0.21059521]
[1751554643968,0.59468716,109850.0,109840.0,0.21969911]
[1751554644394,0.59468716,109850.0,109840.0,0.20149123]
[1751554645054,0.58541662,109850.0,109840.0,0.21059521]
[1751554645266,0.58541662,109850.0,109840.0,0.20149123]
[1751554645481,0.03280001,109850.0,109840.0,0.21059504]
[1751554645686,0.43165905,109850.0,109840.0,0.22880226]
[1751554645883,0.44076228,109850.0,109840.0,0.22880226]
[1751554646289,0.03280001,109850.0,109840.0,0.22880226]
[1751554646497,0.43976169,109850.0,109840.0,0.22780226]
[1751554646862,0.44276169,109850.0,109840.0,0.22780226]
[1751554647066,0.62482814,109850.0,109840.0,0.20049123]
[1751554647266,0.62482872,109850.0,109840.0,0.20049123]
[1751554647474,0.62182872,109850.0,109840.0,0.20959513]
[1751554647723,0.62282872,109850.0,109840.0,0.22780267]
[1751554648540,0.63193204,109850.0,109840.0,0.22780267]
[1751554648748,0.62282922,109850.0,109840.0,0.22780267]
[1751554649189,0.61372632,109850.0,109840.0,0.22780267]
[1751554649810,0.42255655,109850.0,109840.0,0.22780168]
[1751554650009,0.42255622,109850.0,109840.0,0.22780168]
[1751554650657,0.43165945,109850.0,109840.0,0.22780168]
[1751554651308,0.6137259,109850.0,109840.0,0.22780168]
[1751554652091,0.43165945,109850.0,109840.0,0.22780168]
[1751554652484,0.6137259,109850.0,109840.0,0.22780168]
[1751554652682,0.62282922,109850.0,109840.0,0.22780168]
[1751554652961,0.62282922,109850.0,109840.0,0.21869811]
[1751554654193,0.62282922,109850.0,109840.0,0.20049073]
[1751554654839,0.43165945,109850.0,109840.0,0.21869795]
[1751554655199,0.6137259,109850.0,109840.0,0.21869795]
[1751554655696,0.62282922,109850.0,109840.0,0.21869795]
[1751554656098,0.61372632,109850.0,109840.0,0.20049107]
[1751554656296,0.61372632,109850.0,109840.0,0.23966665]
[1751554656523,0.61372632,109850.0,109840.0,0.20954279]
[1751554656729,0.61372632,109850.0,109840.0,0.21864669]
[1751554657343,0.24217616,109850.0,109840.0,0.21864669]
[1751554657551,0.42255622,109850.0,109840.0,0.22774992]
[1751554657748,0.01670001,109850.0,109840.0,0.31918685]
[1751554658004,0.00100001,109850.0,109840.0,0.81059522]
[1751554658215,0.00100001,109850.0,109840.0,0.5557277]
[1751554658432,0.00100001,109850.0,109840.0,0.5231277]
[1751554658638,0.00100001,109850.0,109840.0,0.5386277]
[1751554659147,0.00100001,109850.0,109840.0,0.5251277]
[1751554659348,1e-08,109850.0,109840.0,0.5251277]
[1751554659756,1e-08,109850.0,109840.0,0.5271277]
[1751554660296,1e-08,109850.0,109840.0,0.31408328]
[1751554660505,0.42225581,109850.0,109840.0,0.32318685]
[1751554660677,0.41315291,109850.0,109840.0,0.51254685]
[1751554661117,0.42225573,109850.0,109840.0,0.51254685]
[1751554661521,0.43135872,109850.0,109840.0,0.51254685]
[1751554662088,0.41315291,109850.0,109840.0,0.51254685]
[1751554662387,0.41315291,109850.0,109840.0,0.51054685]
[1751554662850,0.41315291,109850.0,109840.0,0.51154685]
[1751554663076,0.42225573,109850.0,109840.0,0.51154685]
[1751554663433,0.42225573,109850.0,109840.0,0.50954685]
[1751554663603,0.42225573,109850.0,109840.0,0.51054685]
[1751554664230,0.01630001,109850.0,109840.0,0.51054685]
[1751554664913,1e-08,109850.0,109840.0,0.51054685]
[1751554665291,0.00910258,109850.0,109840.0,0.51054685]
[1751554665535,0.39665274,109850.0,109840.0,0.51054685]
[1751554666522,0.01600001,109850.0,109840.0,0.51054685]
[1751554667984,0.02510258,109850.0,109840.0,0.51054685]
[1751554668207,0.04130258,109850.0,109840.0,0.51054685]
[1751554668364,0.05040532,109850.0,109840.0,0.51054685]
[1751554668576,0.04130258,109850.0,109840.0,0.51054685]
[1751554668978,0.05040523,109850.0,109840.0,0.51054685]
[1751554669393,0.42195539,109850.0,109840.0,0.51054685]
[1751554669761,0.01600001,109850.0,109840.0,0.51054685]
[1751554669966,0.39665274,109850.0,109840.0,0.51054685]
[1751554670895,0.40575548,109850.0,109840.0,0.51054685]
[1751554671115,0.42215548,109850.0,109840.0,0.51054685]
[1751554671325,0.43125847,109850.0,109840.0,0.51054685]
[1751554671534,0.42215548,109850.0,109840.0,0.51054685]
[1751554671746,0.41305274,109850.0,109840.0,0.51054685]
[1751554671959,0.43125821,109850.0,109840.0,0.51054685]
[1751554672168,0.05970805,109850.0,109840.0,0.51054685]
[1751554672377,0.03420523,109850.0,109840.0,0.51054685]
[1751554672879,0.05241104,109850.0,109840.0,0.51054685]
[1751554673283,0.04330805,109850.0,109840.0,0.51054685]
[1751554673487,0.01600001,109850.0,109840.0,0.51054685]
[1751554673717,0.00910266,109850.0,109840.0,0.51054685]
[1751554673918,1e-08,109850.0,109840.0,0.51054685]
[1751554674929,1e-08,109850.0,109840.0,0.52614685]
[1751554675087,0.00910258,109850.0,109840.0,0.52614685]
[1751554675293,1e-08,109850.0,109840.0,0.52614685]
[1751554675810,1e-08,109850.0,109840.0,0.51054685]
[1751554676598,1e-08,109850.0,109840.0,0.54124685]
[1751554676822,1e-08,109850.0,109840.0,0.91279701]
[1751554677065,1e-08,109850.0,109840.0,0.54124685]
[1751554677635,1e-08,109850.0,109840.0,0.91279701]
[1751554678088,1e-08,109850.0,109840.0,0.54124685]
[1751554678239,0.00035701,109850.0,109840.0,0.52614685]
[1751554678639,0.00035701,109850.0,109840.0,0.54214685]
[1751554679043,0.00035701,109850.0,109840.0,0.52614685]
[1751554680933,0.01595701,109850.0,109840.0,0.51054685]
[1751554681136,0.00035701,109850.0,109840.0,0.51054685]
[1751554681340,0.00035701,109850.0,109840.0,0.52594685]
[1751554681539,0.00035701,109850.0,109840.0,0.54224685]
[1751554682436,0.00035701,109850.0,109840.0,0.52594685]
[1751554683164,0.00035701,109850.0,109840.0,0.51054685]
[1751554684593,0.00035701,109850.0,109840.0,0.52644685]
[1751554685010,0.00035701,109850.0,109840.0,0.54264685]
[1751554685826,0.00035701,109850.0,109840.0,0.5571877]
[1751554689561,0.00035701,109850.0,109840.0,0.92873786]
[1751554694428,1e-08,109850.0,109840.0,1.81300538]
[1751554694638,1e-08,109850.0,109840.0,1.88561009]
[1751554694853,1e-08,109850.0,109840.0,1.53265993]
[1751554695439,1e-08,109850.0,109840.0,1.53165993]
[1751554695656,1e-08,109850.0,109840.0,1.21958257]
[1751554695915,1e-08,109850.0,109840.0,1.36853786]
[1751554696100,1e-08,109850.0,109840.0,1.41853786]
[1751554696727,1e-08,109850.0,109840.0,1.49114257]
[1751554696934,1e-08,109850.0,109840.0,1.86269273]
[1751554697074,1e-08,109850.0,109840.0,1.86869273]
[1751554697927,1e-08,109850.0,109840.0,1.49714257]
[1751554698101,0.0004,109880.0,109870.0,0.2093373]
[1751554698304,0.0004,109880.0,109870.0,0.87676439]
[1751554698305,0.00044723,109880.0,109870.0,0.87676439]
[1751554699449,0.00044723,109880.0,109870.0,0.87776439]
[1751554699602,0.00044723,109880.0,109870.0,0.51538421]
[1751554699811,0.00044723,109880.0,109870.0,0.88693437]
[1751554700037,0.00044723,109880.0,109870.0,0.90147522]
[1751554701226,0.01644723,109880.0,109870.0,0.31094421]
[1751554701432,0.03284723,109880.0,109870.0,0.31094421]
[1751554701617,0.03284723,109880.0,109870.0,0.49994421]
[1751554701902,0.01644723,109880.0,109870.0,0.49944954]
[1751554702337,0.00044723,109880.0,109870.0,0.8709997]
[1751554704131,0.01544723,109880.0,109870.0,0.49944954]
[1751554704937,0.01544723,109880.0,109870.0,0.31044954]
[1751554705152,0.40259739,109880.0,109870.0,0.30127956]
[1751554705360,0.03104723,109880.0,109870.0,0.49023956]
[1751554705564,0.01544723,109880.0,109870.0,0.49023956]
[1751554705975,0.00044723,109880.0,109870.0,0.87633057]
[1751554707016,0.00044723,109880.0,109870.0,0.50478041]
[1751554708227,0.01574723,109880.0,109870.0,0.31582041]
[1751554708445,0.01574723,109880.0,109870.0,0.50474041]
[1751554709702,0.01574723,109880.0,109870.0,0.31582041]
[1751554709925,0.01574723,109880.0,109870.0,0.50474041]
[1751554710557,0.00044723,109880.0,109870.0,0.89189057]
[1751554710986,0.00044723,109880.0,109870.0,0.90769057]
[1751554711435,0.00044723,109880.0,109870.0,0.98040793]
[1751554712078,0.00044723,109880.0,109870.0,0.97940793]
[1751554712535,0.00044723,109880.0,109870.0,0.98640793]
[1751554712747,0.00044723,109880.0,109870.0,1.37640793]
[1751554712748,1e-08,109880.0,109870.0,1.37640793]
[1751554713646,1e-08,109890.0,109880.0,1.32341856]
[1751554713867,1e-08,109890.0,109880.0,1.04330533]
[1751554714527,1e-08,109890.0,109880.0,1.33830533]
[1751554714750,1e-08,109890.0,109880.0,1.70985549]
[1751554715191,1e-08,109890.0,109880.0,1.77639634]
[1751554715409,0.0004,109900.0,109890.0,1.38854036]
[1751554715410,1e-08,109900.0,109890.0,1.38854036]
[1751554715619,1e-08,109900.0,109890.0,1.71581729]
[1751554716572,1e-08,109900.0,109890.0,1.66581729]
[1751554716795,1e-08,109900.0,109890.0,1.29718713]
[1751554717719,1e-08,109900.0,109890.0,1.30018713]
[1751554718133,1e-08,109900.0,109890.0,1.96673729]
[1751554719032,1e-08,109900.0,109890.0,2.01673729]
[1751554720736,1e-08,109900.0,109890.0,1.27363697]
[1751554720937,1e-08,109900.0,109890.0,2.01673729]
[1751554721626,1e-08,109900.0,109890.0,2.04407568]
[1751554724562,1e-08,109900.0,109890.0,1.80831568]
[1751554724796,1e-08,109900.0,109890.0,2.04399568]
[1751554725359,1e-08,109900.0,109890.0,2.07134668]
[1751554729566,1e-08,109900.0,109890.0,1.61815652]
[1751554730713,1e-08,109900.0,109890.0,1.38251652]
[1751554730924,1e-08,109900.0,109890.0,1.61815652]
[1751554731987,1e-08,109900.0,109890.0,1.98970668]
[1751554732830,1e-08,109900.0,109890.0,2.02893452]
[1751554733043,1e-08,109900.0,109890.0,1.98970668]
[1751554734756,1e-08,109900.0,109890.0,1.61815652]
[1751554734974,1e-08,109900.0,109890.0,1.98970668]
[1751554735380,1e-08,109900.0,109890.0,2.00568668]
[1751554736328,1e-08,109900.0,109890.0,1.77016668]
[1751554736554,1e-08,109900.0,109890.0,2.00568668]
[1751554737500,1e-08,109900.0,109890.0,1.77016668]
[1751554737748,1e-08,109900.0,109890.0,2.00568668]
[1751554738587,1e-08,109900.0,109890.0,1.98958668]
[1751554740522,0.01520001,109900.0,109890.0,1.61803652]
[1751554741459,1e-08,109900.0,109890.0,1.61803652]
[1751554742398,1e-08,109900.0,109890.0,1.24648636]
[1751554742628,1e-08,109900.0,109890.0,1.98958668]
[1751554745269,1e-08,109900.0,109890.0,2.06219139]
[1751554748028,1e-08,109900.0,109890.0,1.69084123]
[1751554751382,1e-08,109900.0,109890.0,2.44084123]
[1751554753105,1e-08,109900.0,109890.0,2.81239139]
[1751554753877,1e-08,109900.0,109890.0,2.44084123]
[1751554754090,0.03010001,109900.0,109890.0,2.06917107]
[1751554754293,0.03010001,109900.0,109890.0,2.44072123]
[1751554756128,0.03010001,109900.0,109890.0,2.06917107]
[1751554756329,0.03010001,109900.0,109890.0,2.44072123]
[1751554757625,0.03010001,109900.0,109890.0,2.20532123]
[1751554757835,0.03010001,109900.0,109890.0,2.44072123]
[1751554759460,0.03010001,109900.0,109890.0,2.14572123]
[1751554761924,0.03010001,109900.0,109890.0,2.12226372]
[1751554762366,0.01500001,109900.0,109890.0,2.12226372]
[1751554762885,0.01500001,109900.0,109890.0,1.77417107]
[1751554766394,0.01500001,109900.0,109890.0,1.74682007]
[1751554767445,0.01500001,109900.0,109890.0,1.51142007]
[1751554767642,0.01500001,109900.0,109890.0,1.74662007]
[1751554769761,0.03090001,109900.0,109890.0,1.15687922]
[1751554769996,0.03090001,109900.0,109890.0,1.34527922]
[1751554770396,0.03090001,109900.0,109890.0,1.34227922]
[1751554770607,0.03090001,109900.0,109890.0,1.38150706]
[1751554770811,0.03090001,109900.0,109890.0,1.34227922]
[1751554771900,0.03090001,109900.0,109890.0,1.15387922]
[1751554772118,0.03090001,109900.0,109890.0,1.38903922]
[1751554772322,0.03090001,109900.0,109890.0,1.31643451]
[1751554774015,0.03090001,109900.0,109890.0,1.31343451]
[1751554778305,0.03090001,109900.0,109890.0,1.38603922]
[1751554778949,0.03090001,109900.0,109890.0,1.31343451]
[1751554779396,0.03090001,109900.0,109890.0,1.12503451]
[1751554779617,0.03090001,109900.0,109890.0,1.31339451]